bitfinex/quotes_SOLUSD_20230111
["timestamp","ask_amount","ask_price","bid_price","bid_amount"]
[1673460372684,35.43,15.699,15.684,47.83]
[1673460372896,35.43,15.699,15.681,47.84]
[1673460373094,35.43,15.699,15.679,47.84]
[1673460373095,133.3048,15.698,15.679,47.84]
[1673460373304,27.69,15.69,15.679,47.84]
[1673460373747,16.39,15.697,15.679,47.84]
[1673460373748,15.43,15.697,15.679,47.84]
[1673460373950,212.41409937,15.7,15.681,20.0]
[1673460373951,112.4298,15.696,15.681,20.0]
[1673460374274,27.76,15.7,15.682,39.14496728]
[1673460374464,27.76,15.7,15.683,0.96]
[1673460374674,27.76,15.7,15.684,0.96]
[1673460374879,27.76,15.7,15.685,0.96]
[1673460375090,27.76,15.7,15.685,40.10496728]
[1673460375301,27.76,15.7,15.686,65.78]
[1673460375530,27.76,15.7,15.686,47.82]
[1673460376454,27.76,15.7,15.686,66.96496728]
[1673460376887,27.76,15.7,15.687,21.92]
[1673460377309,109.2466,15.704,15.688,86.10993456]
[1673460377519,109.2466,15.704,15.689,1.92]
[1673460377713,250.5242,15.72,15.691,20.0]
[1673460377930,111.4188,15.719,15.693,20.0]
[1673460378141,19.14496728,15.718,15.694,20.0]
[1673460378359,62.67463698,15.718,15.695,1.92]
[1673460378788,19.14496728,15.718,15.696,47.79]
[1673460378980,25.468794,15.715,15.697,21.92]
[1673460379195,25.468794,15.715,15.697,41.06496728]
[1673460379402,25.468794,15.715,15.7,27.72]
[1673460379618,25.468794,15.715,15.701,20.0]
[1673460379821,25.468794,15.715,15.702,1.92]
[1673460380027,24.968794,15.715,15.702,37.0]
[1673460380241,24.968794,15.715,15.698,54.52504049]
[1673460380458,24.968794,15.715,15.699,20.0]
[1673460380680,24.968794,15.715,15.699,39.14496728]
[1673460380976,24.968794,15.715,15.7,47.78]
[1673460381205,27.72,15.71,15.698,54.52504049]
[1673460381415,27.72,15.71,15.697,20.0]
[1673460381736,27.72,15.71,15.698,47.79]
[1673460382348,27.72,15.71,15.697,47.79]
[1673460382894,27.72,15.71,15.696,67.79]
[1673460385292,0.96,15.709,15.696,67.79]
[1673460385516,20.96,15.709,15.693,20.0]
[1673460385741,0.96,15.708,15.693,20.0]
[1673460385923,0.96,15.707,15.693,20.0]
[1673460386128,0.96,15.707,15.691,20.0]
[1673460386339,0.96,15.706,15.692,47.8]
[1673460386550,0.96,15.705,15.69,47.81]
[1673460386771,0.96,15.705,15.689,20.0]
[1673460386772,27.72,15.7,15.689,67.81]
[1673460387288,27.72,15.7,15.689,20.0]
[1673460387495,27.72,15.7,15.688,47.82]
[1673460387706,27.72,15.7,15.687,396.1]
[1673460387916,20.0,15.699,15.684,47.83]
[1673460388126,21.92,15.699,15.674,176.2386]
[1673460388353,21.92,15.699,15.679,19.14496728]
[1673460388547,27.72,15.69,15.674,176.2386]
[1673460388985,27.72,15.69,15.675,19.14496728]
[1673460389414,27.72,15.69,15.677,20.0]
[1673460389816,27.72,15.69,15.678,47.85]
[1673460390983,27.72,15.69,15.679,20.0]
[1673460392032,138.77,15.7,15.68,47.84]
[1673460392246,27.89,15.7,15.681,20.96]
[1673460392437,27.89,15.7,15.681,40.10496728]
[1673460392646,27.89,15.7,15.683,20.0]
[1673460392857,27.89,15.7,15.684,21.92]
[1673460393080,27.89,15.7,15.684,88.89496728]
[1673460393390,138.74,15.71,15.685,38.28993456]
[1673460393603,138.6,15.71,15.686,21.92]
[1673460393811,111.6845,15.704,15.687,20.0]
[1673460394026,27.75,15.71,15.69,27.72]
[1673460394224,27.75,15.71,15.691,20.0]
[1673460394431,27.75,15.71,15.692,20.96]
[1673460394637,27.75,15.71,15.693,20.96]
[1673460394847,27.75,15.71,15.694,37.96]
[1673460395083,27.75,15.71,15.695,20.96]
[1673460395267,27.75,15.71,15.696,20.96]
[1673460395707,117.7597,15.718,15.698,20.0]
[1673460396027,25.466223,15.717,15.699,1.92]
[1673460396240,25.466223,15.717,15.699,66.7]
[1673460396449,25.466223,15.717,15.7,20.0]
[1673460396851,25.466223,15.717,15.701,47.78]
[1673460397290,25.466223,15.717,15.702,0.96]
[1673460397505,25.466223,15.717,15.702,1.92]
[1673460397820,25.466223,15.717,15.703,47.77]
[1673460398008,25.466223,15.717,15.703,47.44511]
[1673460398223,25.466223,15.717,15.7,20.0]
[1673460398224,25.466223,15.717,15.701,47.78]
[1673460398430,25.466223,15.717,15.701,47.45545]
[1673460398431,27.56,15.71,15.701,47.45545]
[1673460398652,27.56,15.71,15.699,47.78]
[1673460399179,27.56,15.71,15.697,47.79]
[1673460399813,27.56,15.71,15.698,20.0]
[1673460400227,27.56,15.71,15.699,47.78]
[1673460400424,27.56,15.71,15.697,47.79]
[1673460402123,27.56,15.71,15.698,20.96]
[1673460402536,27.56,15.71,15.699,47.78]
[1673460402761,25.466223,15.717,15.7,21.92]
[1673460402967,25.466223,15.717,15.701,17.0]
[1673460403287,25.466223,15.717,15.701,64.78]
[1673460403689,25.466223,15.717,15.702,20.0]
[1673460403899,25.466223,15.717,15.703,17.0]
[1673460404117,25.466223,15.717,15.703,64.77]
[1673460404315,25.466223,15.717,15.704,21.92]
[1673460404736,25.466223,15.717,15.705,47.76]
[1673460404737,24.966223,15.717,15.705,47.76]
[1673460404948,24.966223,15.717,15.705,66.90496728]
[1673460405163,24.966223,15.717,15.706,41.06496728]
[1673460405381,24.966223,15.717,15.707,20.0]
[1673460405594,24.966223,15.717,15.707,67.76]
[1673460406117,145.8129,15.72,15.708,0.96]
[1673460406340,145.8129,15.72,15.708,17.0]
[1673460406563,145.8129,15.72,15.709,47.75]
[1673460406983,145.8129,15.72,15.708,47.76]
[1673460407616,145.8129,15.72,15.707,47.76]
[1673460408249,145.3129,15.72,15.707,47.76]
[1673460408444,145.3129,15.72,15.708,20.0]
[1673460408981,117.4529,15.72,15.71,20.0]
[1673460409196,117.4529,15.72,15.71,19.853776]
[1673460409391,117.4529,15.72,15.711,64.75]
[1673460409595,145.1729,15.72,15.706,20.0]
[1673460409806,145.1729,15.72,15.701,20.0]
[1673460409807,20.0,15.719,15.701,20.0]
[1673460410237,20.0,15.719,15.703,47.77]
[1673460410447,1.92,15.718,15.702,47.77]
[1673460410781,0.96,15.718,15.702,47.77]
[1673460410998,20.0,15.719,15.702,19.14496728]
[1673460411181,20.0,15.719,15.703,47.77]
[1673460411519,20.0,15.719,15.701,20.0]
[1673460411717,137.1115,15.719,15.702,0.96]
[1673460411919,137.1115,15.719,15.702,66.69]
[1673460412118,20.0,15.718,15.702,47.77]
[1673460412327,0.96,15.717,15.702,47.77]
[1673460412543,0.96,15.717,15.7,47.78]
[1673460412979,27.72,15.71,15.697,47.79]
[1673460413172,1.92,15.709,15.697,47.79]
[1673460413383,1.92,15.709,15.695,47.8]
[1673460413612,21.92,15.709,15.696,20.0]
[1673460413932,21.92,15.709,15.682,20.0]
[1673460413933,17.0,15.708,15.682,67.83]
[1673460414120,27.69,15.7,15.682,67.83]
[1673460414748,117.1115,15.708,15.682,67.83]
[1673460414960,117.1115,15.708,15.682,75.18777]
[1673460415191,117.1115,15.708,15.682,167.897319]
[1673460415381,19.14496728,15.708,15.682,167.897319]
[1673460415598,27.89,15.71,15.69,27.64]
[1673460415815,27.89,15.71,15.692,20.0]
[1673460416141,27.89,15.71,15.693,21.92]
[1673460416320,27.89,15.71,15.693,69.72]
[1673460416535,20.0,15.709,15.693,48.76]
[1673460416744,27.72,15.7,15.692,47.8]
[1673460416951,27.72,15.7,15.691,47.81]
[1673460417184,27.72,15.7,15.683,47.83]
[1673460417399,27.72,15.7,15.685,47.83]
[1673460417592,27.72,15.7,15.687,20.0]
[1673460417795,27.72,15.7,15.688,0.96]
[1673460418007,20.0,15.709,15.689,0.96]
[1673460418217,20.0,15.709,15.69,0.96]
[1673460418446,20.0,15.709,15.691,20.96]
[1673460418636,19.14496728,15.708,15.691,20.0]
[1673460418856,20.0,15.709,15.692,49.72]
[1673460419276,20.0,15.709,15.692,47.8]
[1673460419804,1.92,15.708,15.692,47.8]
[1673460420015,21.06496728,15.708,15.692,47.8]
[1673460420215,1.92,15.708,15.692,47.8]
[1673460420432,19.14496728,15.707,15.693,17.0]
[1673460420962,1.92,15.706,15.69,47.81]
[1673460421178,1.92,15.706,15.688,47.82]
[1673460421179,27.69,15.7,15.688,47.82]
[1673460421372,1.92,15.699,15.686,20.0]
[1673460421583,27.69,15.7,15.686,20.0]
[1673460421924,1.92,15.699,15.686,20.0]
[1673460422128,1.92,15.699,15.684,20.0]
[1673460422645,1.92,15.699,15.685,47.83]
[1673460422837,1.92,15.699,15.686,40.0]
[1673460423786,27.69,15.7,15.687,47.82]
[1673460424012,27.69,15.7,15.686,40.0]
[1673460424419,27.69,15.7,15.686,20.0]
[1673460424625,1.92,15.699,15.686,20.0]
[1673460425051,27.69,15.7,15.686,20.0]
[1673460425908,1.92,15.699,15.686,20.0]
[1673460426642,27.69,15.7,15.686,20.0]
[1673460426957,1.92,15.699,15.686,20.0]
[1673460427266,1.92,15.699,15.683,47.83]
[1673460427267,21.92,15.699,15.683,47.83]
[1673460427484,20.0,15.697,15.682,47.83]
[1673460427671,0.96,15.696,15.68,47.84]
[1673460427881,0.96,15.695,15.68,47.84]
[1673460428102,0.96,15.694,15.68,47.84]
[1673460429994,27.56,15.69,15.68,47.84]
[1673460430216,27.56,15.69,15.677,47.85]
[1673460430632,27.56,15.69,15.676,47.85]
[1673460430956,27.56,15.69,15.677,20.0]
[1673460431373,27.56,15.69,15.678,47.85]
[1673460431568,1.92,15.689,15.677,47.85]
[1673460431900,27.56,15.69,15.676,47.85]
[1673460432307,27.56,15.69,15.677,20.0]
[1673460432739,27.56,15.69,15.678,47.85]
[1673460433058,112.2948,15.697,15.679,20.96]
[1673460433458,112.2948,15.697,15.68,64.84]
[1673460433786,112.2948,15.697,15.681,20.0]
[1673460434213,138.77,15.7,15.682,49.75]
[1673460434523,27.89,15.7,15.683,40.0]
[1673460434946,27.89,15.7,15.685,20.0]
[1673460435267,27.89,15.7,15.686,20.0]
[1673460435468,27.89,15.7,15.687,17.0]
[1673460435782,27.89,15.7,15.686,67.82]
[1673460436008,1.92,15.699,15.686,67.82]
[1673460436401,1.92,15.699,15.686,47.82]
[1673460436607,19.14496728,15.698,15.68,47.84]
[1673460436937,27.72,15.69,15.68,47.84]
[1673460437151,27.72,15.69,15.679,47.84]
[1673460437466,27.72,15.69,15.678,47.85]
[1673460439342,1.92,15.689,15.677,47.85]
[1673460439976,27.72,15.69,15.677,47.85]
[1673460440303,48.50025728,15.689,15.666,20.0]
[1673460440523,138.73,15.68,15.666,20.0]
[1673460440721,136.12459,15.689,15.668,20.0]
[1673460440924,128.6893,15.689,15.668,20.0]
[1673460441135,128.6893,15.689,15.669,47.87]
[1673460441466,128.6893,15.689,15.67,20.0]
[1673460442085,128.6893,15.689,15.671,47.87]
[1673460442408,1.92,15.688,15.671,47.87]
[1673460442604,21.06496728,15.688,15.671,47.87]
[1673460442811,19.14496728,15.687,15.671,47.87]
[1673460444091,1.92,15.688,15.671,47.87]
[1673460444307,21.92,15.688,15.671,47.87]
[1673460445247,19.14496728,15.687,15.671,47.87]
[1673460445445,1.92,15.686,15.671,47.87]
[1673460445970,21.06496728,15.686,15.671,47.87]
[1673460447343,128.6893,15.689,15.672,20.96]
[1673460447555,21.06496728,15.688,15.672,20.96]
[1673460448094,20.10496728,15.688,15.672,20.96]
[1673460448705,19.14496728,15.688,15.672,20.96]
[1673460448917,19.14496728,15.688,15.673,64.86]
[1673460449242,0.96,15.687,15.673,17.0]
[1673460449450,1.92,15.687,15.673,64.86]
[1673460449642,19.14496728,15.686,15.671,47.87]
[1673460449848,1.92,15.685,15.671,47.87]
[1673460450269,21.06496728,15.685,15.671,47.87]
[1673460450716,27.69,15.68,15.669,47.87]
[1673460450906,27.69,15.68,15.67,17.0]
[1673460451330,27.69,15.68,15.669,47.87]
[1673460451982,27.69,15.68,15.667,47.88]
[1673460452195,27.69,15.68,15.658,20.0]
[1673460452196,41.06496728,15.679,15.664,47.89]
[1673460452414,155.23816728,15.679,15.662,47.9]
[1673460452623,19.14496728,15.678,15.662,47.9]
[1673460452825,19.14496728,15.678,15.66,67.9]
[1673460452826,1.92,15.677,15.66,67.9]
[1673460453032,1.92,15.677,15.662,47.9]
[1673460453242,21.06496728,15.677,15.662,47.9]
[1673460455567,19.14496728,15.677,15.663,0.96]
[1673460455885,27.86,15.68,15.664,0.96]
[1673460456101,27.86,15.68,15.665,20.96]
[1673460456287,27.86,15.68,15.666,37.0]
[1673460456498,27.86,15.68,15.666,84.88]
[1673460456709,27.86,15.68,15.667,20.0]
[1673460457253,27.86,15.68,15.668,47.88]
[1673460457572,27.86,15.68,15.669,20.0]
[1673460457760,27.86,15.68,15.67,17.0]
[1673460457972,27.86,15.68,15.67,64.87]
[1673460458709,27.86,15.68,15.671,20.0]
[1673460459057,27.86,15.68,15.672,17.0]
[1673460460608,108.405,15.688,15.672,17.0]
[1673460460609,108.405,15.688,15.673,69.78]
[1673460460820,108.405,15.688,15.674,37.0]
[1673460461232,108.405,15.688,15.675,67.86]
[1673460461439,108.405,15.688,15.676,37.0]
[1673460461858,108.405,15.688,15.677,47.85]
[1673460462083,108.405,15.688,15.676,37.0]
[1673460463117,108.405,15.688,15.677,47.85]
[1673460463343,108.405,15.688,15.678,37.0]
[1673460463781,27.75,15.69,15.678,37.0]
[1673460463967,118.7127,15.695,15.68,20.0]
[1673460464183,118.7127,15.695,15.679,48.8]
[1673460464184,138.5,15.69,15.671,37.18364714]
[1673460464395,138.5,15.69,15.667,130.2843]
[1673460464597,27.76,15.69,15.667,130.2843]
[1673460464812,27.76,15.69,15.67,27.64]
[1673460465022,27.76,15.69,15.671,20.0]
[1673460465332,27.76,15.69,15.671,67.87]
[1673460465544,19.14496728,15.693,15.671,67.87]
[1673460465773,19.14496728,15.693,15.672,20.96]
[1673460466085,27.56,15.69,15.673,20.0]
[1673460466299,27.56,15.69,15.674,1.92]
[1673460466481,27.56,15.69,15.675,20.0]
[1673460466694,27.56,15.69,15.675,67.86]
[1673460467335,27.56,15.69,15.676,37.0]
[1673460467549,27.56,15.69,15.677,20.0]
[1673460467761,27.56,15.69,15.677,67.85]
[1673460468290,27.56,15.69,15.678,1.92]
[1673460468704,27.56,15.69,15.679,47.84]
[1673460468908,19.14496728,15.693,15.68,20.96]
[1673460469330,19.14496728,15.693,15.681,47.84]
[1673460469647,19.14496728,15.693,15.682,17.0]
[1673460469854,119.877,15.696,15.683,21.92]
[1673460470064,46.89496728,15.7,15.683,69.75]
[1673460470390,27.75,15.7,15.684,20.0]
[1673460470591,27.75,15.7,15.685,0.96]
[1673460470811,27.75,15.7,15.686,0.96]
[1673460471123,27.75,15.7,15.687,0.96]
[1673460471663,27.75,15.7,15.688,47.82]
[1673460472689,112.1573,15.704,15.689,21.92]
[1673460472896,112.1573,15.704,15.69,17.0]
[1673460473110,112.1573,15.704,15.691,0.96]
[1673460473642,112.1573,15.704,15.692,47.8]
[1673460474471,112.1573,15.704,15.693,17.0]
[1673460474892,112.1573,15.704,15.694,47.8]
[1673460475104,112.1573,15.704,15.692,47.8]
[1673460475841,112.1573,15.704,15.693,17.0]
[1673460476258,112.1573,15.704,15.694,47.8]
[1673460476695,112.1573,15.704,15.692,47.8]
[1673460476889,112.1573,15.704,15.693,17.0]
[1673460477742,112.1573,15.704,15.694,47.8]
[1673460478269,112.1573,15.704,15.692,47.8]
[1673460478682,112.1573,15.704,15.69,47.81]
[1673460479095,1.92,15.703,15.688,47.82]
[1673460479511,27.56,15.7,15.687,47.82]
[1673460481626,27.56,15.7,15.688,12.22]
[1673460482380,27.56,15.7,15.688,32.22]
[1673460482697,27.56,15.7,15.689,20.0]
[1673460482895,114.3381,15.703,15.69,0.96]
[1673460483105,114.3381,15.703,15.689,68.77]
[1673460483328,114.3381,15.703,15.689,67.81]
[1673460484369,112.1573,15.704,15.689,67.81]
[1673460484588,112.1573,15.704,15.69,1.92]
[1673460484993,112.1573,15.704,15.691,47.81]
[1673460485310,112.1573,15.704,15.692,1.92]
[1673460485739,112.1573,15.704,15.693,47.8]
[1673460485953,112.1573,15.704,15.694,0.96]
[1673460486159,27.89,15.71,15.694,20.96]
[1673460486362,27.89,15.71,15.695,48.76]
[1673460486566,27.89,15.71,15.696,20.0]
[1673460486782,27.89,15.71,15.697,1.92]
[1673460486996,27.89,15.71,15.697,47.79]
[1673460487425,27.89,15.71,15.698,0.96]
[1673460488376,27.89,15.71,15.697,47.79]
[1673460488558,138.77,15.71,15.68,83.6085]
[1673460488774,27.72,15.7,15.688,137.0853]
[1673460489211,27.72,15.7,15.69,47.81]
[1673460489622,47.76,15.708,15.691,20.0]
[1673460489840,160.6952,15.709,15.692,1.92]
[1673460490056,19.14496728,15.707,15.692,49.72]
[1673460490268,19.14496728,15.707,15.693,20.0]
[1673460492148,19.14496728,15.707,15.694,0.96]
[1673460492361,19.14496728,15.707,15.694,48.76]
[1673460492785,19.14496728,15.707,15.695,20.0]
[1673460492999,27.75,15.71,15.695,20.0]
[1673460493214,27.75,15.71,15.696,85.75]
[1673460493726,27.75,15.71,15.697,20.0]
[1673460493937,27.75,15.71,15.698,17.0]
[1673460494167,27.75,15.71,15.699,1.92]
[1673460494358,27.75,15.71,15.699,0.96]
[1673460494588,27.75,15.71,15.7,47.78]
[1673460494997,27.75,15.71,15.701,20.0]
[1673460495945,27.75,15.71,15.702,64.77]
[1673460496148,27.75,15.71,15.703,20.0]
[1673460497506,15.53,15.71,15.704,17.0]
[1673460499311,147.1299,15.72,15.705,69.68]
[1673460499497,147.1299,15.72,15.705,88.82496728]
[1673460499833,119.3699,15.72,15.706,39.14496728]
[1673460500042,119.3699,15.72,15.707,1.92]
[1673460500252,147.0899,15.72,15.708,20.0]
[1673460500785,147.0899,15.72,15.709,47.75]
[1673460500978,147.0899,15.72,15.709,64.75]
[1673460501189,147.0899,15.72,15.71,20.96]
[1673460501391,147.0899,15.72,15.711,17.0]
[1673460501608,119.3699,15.72,15.711,64.75]
[1673460503185,119.3699,15.72,15.711,47.75]
[1673460503393,111.7193,15.726,15.711,47.75]
[1673460503600,27.76,15.73,15.713,20.0]
[1673460503813,27.76,15.73,15.714,20.0]
[1673460504020,27.76,15.73,15.714,67.74]
[1673460504457,27.76,15.73,15.715,20.0]
[1673460504671,27.76,15.73,15.716,20.0]
[1673460504890,27.76,15.73,15.716,67.73]
[1673460505414,27.76,15.73,15.717,17.0]
[1673460505622,27.76,15.73,15.714,47.74]
[1673460505839,27.76,15.73,15.711,20.0]
[1673460506241,47.69,15.729,15.711,20.0]
[1673460506446,27.76,15.73,15.713,20.0]
[1673460506893,27.76,15.73,15.714,67.84496728]
[1673460507208,27.76,15.73,15.715,20.96]
[1673460507392,27.76,15.73,15.714,47.74]
[1673460507609,27.76,15.73,15.715,20.0]
[1673460507823,137.7,15.73,15.716,20.0]
[1673460508039,137.7,15.73,15.716,67.73]
[1673460508232,137.7,15.73,15.716,20.0]
[1673460508443,27.59,15.73,15.716,20.0]
[1673460508652,27.59,15.73,15.717,47.73]
[1673460508878,27.59,15.73,15.718,17.0]
[1673460509195,137.99,15.73,15.714,47.74]
[1673460509402,47.69,15.729,15.713,20.0]
[1673460509726,47.69,15.729,15.714,17.0]
[1673460509928,222.4698,15.728,15.714,64.74]
[1673460510443,222.4698,15.728,15.715,21.92]
[1673460510993,222.4698,15.728,15.716,47.73]
[1673460511509,222.4698,15.728,15.717,20.0]
[1673460511909,222.4698,15.728,15.718,17.96]
[1673460512247,222.4698,15.728,15.718,17.0]
[1673460512768,111.7114,15.728,15.718,17.0]
[1673460516429,111.7114,15.728,15.719,0.96]
[1673460516637,111.7114,15.728,15.717,20.0]
[1673460516867,111.7114,15.728,15.705,20.0]
[1673460517079,111.7114,15.728,15.715,42.71427202]
[1673460517400,111.7114,15.728,15.717,20.0]
[1673460518233,111.7114,15.728,15.718,17.96]
[1673460518555,111.7114,15.728,15.718,17.0]
[1673460518740,111.7114,15.728,15.715,66.87496728]
[1673460518949,111.7114,15.728,15.716,38.92]
[1673460519287,111.7114,15.728,15.716,37.96]
[1673460519493,111.7114,15.728,15.711,46.18093869]
[1673460519714,47.7,15.727,15.705,20.0]
[1673460519895,117.4708,15.72,15.706,39.14496728]
[1673460520104,117.4708,15.72,15.708,67.76]
[1673460520335,117.4708,15.72,15.708,20.0]
[1673460520747,117.4708,15.72,15.707,112.055]
[1673460520968,144.8708,15.72,15.707,112.055]
[1673460521494,144.8708,15.72,15.706,67.76]
[1673460521991,144.8708,15.72,15.706,20.0]
[1673460522336,21.92,15.719,15.704,47.77]
[1673460522960,144.8708,15.72,15.704,47.77]
[1673460523176,258.8542,15.72,15.706,20.0]
[1673460523475,258.8542,15.72,15.705,39.14496728]
[1673460523672,258.8542,15.72,15.706,17.0]
[1673460523889,47.7,15.727,15.707,20.0]
[1673460524118,111.7114,15.728,15.708,20.0]
[1673460524311,111.7114,15.728,15.709,20.96]
[1673460524516,111.7114,15.728,15.71,20.96]
[1673460524727,111.7114,15.728,15.711,0.96]
[1673460524938,111.7114,15.728,15.712,0.96]
[1673460525148,111.7114,15.728,15.713,0.96]
[1673460525363,111.7114,15.728,15.714,0.96]
[1673460525580,111.7114,15.728,15.715,0.96]
[1673460525786,111.7114,15.728,15.716,0.96]
[1673460526006,111.7114,15.728,15.716,20.96]
[1673460526328,111.7114,15.728,15.717,67.83496728]
[1673460526519,111.7114,15.728,15.718,0.96]
[1673460527358,111.7114,15.728,15.717,67.83496728]
[1673460527679,111.7114,15.728,15.717,19.14496728]
[1673460527892,111.7114,15.728,15.716,20.0]
[1673460528092,111.7114,15.728,15.714,67.74]
[1673460528302,111.7114,15.728,15.714,20.0]
[1673460528737,111.7114,15.728,15.712,47.74]
[1673460528954,114.781,15.727,15.71,47.75]
[1673460529144,117.6077,15.72,15.71,47.75]
[1673460529355,117.6077,15.72,15.709,66.89496728]
[1673460529876,117.6077,15.72,15.71,20.0]
[1673460530534,117.6077,15.72,15.709,66.89496728]
[1673460531385,117.6077,15.72,15.71,20.96]
[1673460532330,117.6077,15.72,15.71,0.96]
[1673460533253,367.7363538,15.721,15.711,19.14496728]
[1673460533465,367.7363538,15.721,15.711,66.89496728]
[1673460533675,367.7363538,15.721,15.71,47.75]
[1673460534738,367.7363538,15.721,15.711,1.92]
[1673460535143,20.0,15.72,15.71,19.14496728]
[1673460535350,135.309,15.72,15.707,47.76]
[1673460535664,162.909,15.72,15.704,20.0]
[1673460535879,162.909,15.72,15.705,20.0]
[1673460536084,162.909,15.72,15.705,67.76]
[1673460536719,142.909,15.72,15.705,67.76]
[1673460536938,142.909,15.72,15.705,86.90496728]
[1673460537137,142.909,15.72,15.706,20.0]
[1673460537347,0.96,15.719,15.705,20.0]
[1673460537559,142.909,15.72,15.705,20.0]
[1673460538188,20.0,15.719,15.705,20.0]
[1673460538609,142.909,15.72,15.705,20.0]
[1673460539884,142.909,15.72,15.69,27.6]
[1673460539885,18.92,15.719,15.69,27.6]
[1673460540096,2.18859135,15.709,15.691,20.0]
[1673460540511,2.18859135,15.709,15.692,66.94496728]
[1673460540930,2.18859135,15.709,15.693,39.14496728]
[1673460541352,2.18859135,15.709,15.694,66.94496728]
[1673460541568,2.18859135,15.709,15.695,1.92]
[1673460541795,2.18859135,15.709,15.695,41.06496728]
[1673460542000,2.18859135,15.709,15.696,47.79]
[1673460542218,2.18859135,15.709,15.696,66.93496728]
[1673460542633,2.18859135,15.709,15.697,20.0]
[1673460542843,2.18859135,15.709,15.697,19.14496728]
[1673460543053,2.18859135,15.709,15.695,20.0]
[1673460543054,1.92,15.708,15.695,20.0]
[1673460543382,2.18859135,15.707,15.696,67.79]
[1673460543588,2.18859135,15.709,15.696,67.79]
[1673460544647,2.18859135,15.709,15.696,20.0]
[1673460545049,2.18859135,15.709,15.695,20.0]
[1673460545471,2.18859135,15.709,15.696,47.79]
[1673460547272,2.18859135,15.709,15.697,20.0]
[1673460547781,2.18859135,15.709,15.698,47.79]
[1673460547982,2.18859135,15.709,15.697,47.79]
[1673460548199,2.18859135,15.709,15.696,47.79]
[1673460548408,0.96,15.708,15.696,47.79]
[1673460548619,2.18859135,15.707,15.696,47.79]
[1673460549985,1.92,15.706,15.696,47.79]
[1673460550196,2.18859135,15.705,15.696,47.79]
[1673460551043,27.53,15.71,15.696,47.79]
[1673460551044,2.18859135,15.709,15.697,20.0]
[1673460551557,2.18859135,15.709,15.698,47.79]
[1673460551780,2.18859135,15.709,15.698,66.93496728]
[1673460551990,300.929,15.72,15.699,20.0]
[1673460551991,2.18859135,15.71,15.699,20.0]